Cogmind - Beta 17 @@@ ROGUE MODE // 2026.07.01 @ 11:03:12 Player: shapeshifter Result: Destroyed by H-71 Marshal with Heavy Mass Driver Performance ------------- Evolutions (6) 3000 Regions Visited (12) 2400 Robots Destroyed (131) 655 Value Destroyed (4206) 4206 Prototype IDs (64) 1280 Alien Tech Used (1) 200 Bonus (13673) 13673 TOTAL SCORE: 25414 Bonus ------- High Alert Combat Kills 23 Follower Combat Kills 1364 Prayed to X0-1V1 5000 Major X0-1V1 Interference 7600 Registered with UFD 300 Met Optimus in HQ 500 Met Data Miner 300 Friendly Fire -1414 Cogmind --------- Core Integrity 0/1250 Matter 665/700 Energy 89/100 System Corruption 6% Temperature Cool (6) Movement Flying (35) Location -4/Armory Parts ------- > --- POWER (3) -------- (None) > --- PROPULSION (7) --- Cesium-ion Thruster > --- UTILITY (9) ------ Self-contained Transmogrifier Self-contained Transmogrifier > --- WEAPON (2) ------- (None) > --- INVENTORY (6) ---- Hypervelocity Railgun Hypervelocity Railgun CPS Tube (2) Molecular Deconstructor Peak State ------------ > --- POWER ------------ F-cell Engine F-cell Engine Fusion Reactor > --- PROPULSION ------- Improved Titanium Leg Flexi-carbon Leg Armored Leg Improved VSS Leg Experimental Flexi-carbon Leg Experimental Flexi-carbon Leg Experimental Flexi-carbon Leg > --- UTILITY ---------- Advanced Heat Sink Large Storage Unit Improved Trap Scanner Experimental Optical Array Improved Kinecellerator Improved Powered Armor Focal Shield Improved System Shield Self-contained Transmogrifier > --- WEAPON ----------- Hypervelocity Gauss Cannon Companion Sword > --- INVENTORY -------- F-cell Engine Matter Compressor Improved Sensor Array Improved Signal Interpreter Improved Transmission Jammer Self-contained Transmogrifier Amulet of Y3-NDR X0-1V1's Piety Tracker Advanced Plasma Cannon Improved Proton Missile Launcher Missile Launcher CPS Tube Molecular Deconstructor [Rating: 132] Favorites ----------- Power Heavy Ion Engine Engine Heavy Ion Engine Power Core Fusion Compressor Reactor Fusion Reactor Propulsion Armored Leg Treads Light Treads Leg Armored Leg Wheel Wheel Hover Unit Gravmag System Flight Unit Surge Thruster Utility Self-contained Transmogrifier Device Self-contained Transmogrifier Storage Large Storage Unit Processor Experimental Optical Array Hackware Hacking Suite Protection Advanced Powered Armor Weapon Companion Sword Energy Gun Improved Lightning Gun Energy Cannon Compact Ion Cannon Ballistic Gun Light Assault Rifle Ballistic Cannon Hypervelocity Gauss Cannon Launcher Improved Proton Missile Launcher Special Weapon Remote Datajack Impact Weapon Great Maul Slashing Weapon Companion Sword Piercing Weapon Heavy Pick Build | -11 -10 -10 -9 -9 -6 -6 -6 -6 -5 -5 -4 -4 ------- Run | Yrd Mat Sub Rec Scr Fac Low Low Dat Pro Fac Fac Arm Slots Evolved 12 | . . . . . 8 . . . . 2 2 . Power 1 | . . . . . . . . . . . 1 . Propulsion 2 | . . . . . 2 . . . . . . . Utility 8 | . . . . . 6 . . . . 2 . . Weapon 1 | . . . . . . . . . . . 1 . Parts Attached 109 | 7 3 19 2 7 13 6 4 . 1 13 20 14 Power 12 | 1 . 2 . . . 2 1 . . 2 4 . Engine 8 | 1 . 2 . . . 1 1 . . 2 1 . Core 4 | . . . . . . 1 . . . . 3 . Reactor . | . . . . . . . . . . . . . Propulsion 27 | 2 . 3 2 3 3 3 . . 1 4 3 3 Treads 6 | 2 . . 2 1 . . . . . . 1 . Leg 11 | . . . . 2 2 2 . . 1 4 . . Wheel 5 | . . 3 . . . . . . . . 2 . Hover 1 | . . . . . 1 . . . . . . . Flight 4 | . . . . . . 1 . . . . . 3 Utility 45 | 2 3 4 . . 9 1 3 . . 7 9 7 Device 25 | 1 1 2 . . 6 . 3 . . 3 4 5 Storage 5 | 1 2 . . . 1 1 . . . . . . Processor 6 | . . . . . . . . . . 3 3 . Hackware 3 | . . . . . 2 . . . . . . 1 Protection 6 | . . 2 . . . . . . . 1 2 1 Artifact . | . . . . . . . . . . . . . Weapon 25 | 2 . 10 . 4 1 . . . . . 4 4 Energy Gun 6 | . . 4 . 1 . . . . . . . 1 Energy Cannon 5 | . . 3 . . 1 . . . . . 1 . Ballistic Gun 6 | 2 . 2 . . . . . . . . . 2 Ballistic Cannon 1 | . . . . . . . . . . . 1 . Launcher 3 | . . 1 . . . . . . . . 2 . Special Weapon 2 | . . . . 1 . . . . . . . 1 Impact Weapon . | . . . . . . . . . . . . . Slashing Weapon 1 | . . . . 1 . . . . . . . . Piercing Weapon 1 | . . . . 1 . . . . . . . . Special Melee Weapon . | . . . . . . . . . . . . . Unidentified Prototypes 10 | . 1 2 . 2 1 . 1 . . . 2 1 Corrupted Parts 2 | . . . . . . 1 . . . . 1 . System Corruption 13 | . . . . . . 10 . . . . 3 . Parts Lost 55 | . . 5 1 . 7 2 1 . 1 2 27 9 Power 7 | . . . . . . 1 . . . . 6 . Propulsion 22 | . . 3 1 . 3 . . . . 1 12 2 Utility 18 | . . . . . 3 1 1 . 1 1 6 5 Weapon 8 | . . 2 . . 1 . . . . . 3 2 Highest Loss Streak 10 | . . 2 1 . 5 2 1 . 1 1 10 5 To Critical Strikes 1 | . . . . . . . . . . . 1 . Average Backups 7 | 1 4 6 4 3 4 5 14 15 15 13 12 6 Power . | . 1 . . . . . . . . 1 . . Propulsion . | . . . . . . . . . . 1 . . Utility 2 | 1 3 4 3 1 1 2 2 5 5 3 5 1 Weapon 1 | . . . . . . 1 2 3 3 4 4 2 Tool/Special . | . . . . . . . . . . . . . Unused Backups 50 | . . 10 1 11 9 4 3 . 4 3 1 4 Power . | . . . . . . . . . . . . . Propulsion 5 | . . 1 . 1 1 . . . . 2 . . Utility 27 | . . 7 . 8 5 4 . . . . 1 2 Weapon 9 | . . 2 1 2 3 . . . . . . 1 Tool/Special 9 | . . . . . . . 3 . 4 1 . 1 Average Slot Usage (%) 89 | . 100 94 97 97 80 90 88 82 83 86 90 23 Engine 11 | . 14 18 21 18 5 1 2 5 . 3 4 . Core 3 | . . . 3 3 4 9 4 . 4 1 5 . Reactor 2 | . . . . 2 1 1 4 5 5 5 1 . Treads 3 | . 28 8 8 3 . . . . . . . . Leg 14 | . . . . 16 20 21 21 17 19 24 26 . Wheel 4 | . . 16 14 2 . . . . . . . . Device 13 | . 14 8 12 12 20 15 16 17 17 19 20 11 Storage 3 | . 14 8 . . 4 1 5 5 5 5 4 1 Processor 2 | . . 1 . . . . 6 11 6 8 9 3 Hackware 1 | . . . . . 2 11 1 . . 3 1 . Protection 3 | . . 1 . . 2 10 15 11 13 8 2 1 Energy Gun 5 | . . 11 10 6 7 . . . . . . . Energy Cannon 1 | . . 4 1 . 1 6 . . . . . . Ballistic Gun 3 | . 28 13 . 2 . . . . . . . . Special Weapon 4 | . . . . 12 . . . . . . . . Impact Weapon 2 | . . 1 23 6 . . . . . . . . Slashing Weapon 4 | . . . . 6 5 6 5 5 5 5 4 1 Peak Build Rating 132 | 7 19 29 31 54 91 96 105 100 108 123 132 71 Average Rating 59 | 5 7 15 27 43 78 89 99 100 102 117 115 37 On Entrance 60 | . 7 19 25 28 50 84 96 100 99 94 122 65 Avg Prop Armor Cover (%) 7 | . . 6 11 8 5 3 . . . . 8 . Naked Turns . | . . . . . . . . . . . . . Heaviest Build 92 | 14 29 55 29 39 62 76 80 67 91 82 92 49 Greatest Support 147 | 40 40 40 40 48 92 84 89 88 108 145 147 15 Greatest Overweight (x) 16 | . . 10 7 2 1 2 . . . . 15 16 Average Overweight (x) . | . . 1 1 . . . . . . . . . Largest Inventory Capacity 16 | 8 15 16 6 6 16 16 16 16 16 16 16 16 Average Capacity 10 | 7 10 11 6 6 12 6 16 16 16 16 16 8 Most Carried 16 | 5 5 16 6 6 9 12 16 15 16 16 16 13 Average Carried 8 | 2 4 8 5 4 6 5 14 15 15 14 14 7 Final Capacity 16 | 8 15 6 6 6 6 16 16 16 16 16 16 6 Final Carried 16 | 4 5 6 6 6 5 12 15 15 15 16 11 5 Transmogrified Parts 116 | . . 2 7 41 13 10 12 1 9 13 5 3 Integrity Recovered 2617 | . . 47 97 106 356 368 96 2 694 270 97 484 Class Distribution -------------------- 79% | Mutant 6% | Gunner 4% | Hacker-Mutant 3% | Scavenger-Executioner Dominant Class ---------------- Mutant | -10/Materials Mutant | -10/Subcaves Mutant | -9/Recycling Mutant | -9/Scraptown Mutant | -6/Factory Hacker-Mutant | -6/Lower Caves Mutant | -6/Lower Caves Mutant | -6/Data Miner Mutant | -5/Proximity Caves Mutant | -5/Factory Mutant | -4/Factory Mutant | -4/Armory Resources | -11 -10 -10 -9 -9 -6 -6 -6 -6 -5 -5 -4 -4 ----------- Run | Yrd Mat Sub Rec Scr Fac Low Low Dat Pro Fac Fac Arm Matter Collected 3502 | 294 . 1196 59 166 137 153 367 . 20 309 576 225 Remotely . | . . . . . . . . . . . . . Salvage Created 5998 | 125 . 639 112 . 1176 286 341 . 310 908 1765 336 Parts 277 | 7 . 51 4 . 37 9 15 . 16 27 98 13 Haulers Intercepted 5 | . . . . . 2 . . . . 2 1 . Recyclers Shooed 5 | 1 . . . . . . . . . . 4 . Parts Field Recycled . | . . . . . . . . . . . . . Retrieved Matter . | . . . . . . . . . . . . . Parts Self-Destructed 95 | . . 51 . . . 12 13 . 19 . . . Prevented 7 | . . . . . . 3 4 . . . . . Parts Restored . | . . . . . . . . . . . . . Kills | -11 -10 -10 -9 -9 -6 -6 -6 -6 -5 -5 -4 -4 ------- Run | Yrd Mat Sub Rec Scr Fac Low Low Dat Pro Fac Fac Arm Combat Hostiles Destroyed 90 | . . 27 2 . 14 5 3 . 7 9 19 4 Melee 29 | . . . . . 4 5 2 . 7 8 3 . Guns 27 | . . 16 1 . 6 . 1 . . . . 3 Cannons 9 | . . 6 . . . . . . . 1 1 1 AOE 19 | . . 4 . . 4 . . . . . 11 . Classes Destroyed 20 | 2 . 5 . . 4 1 2 . 2 2 2 . Worker 8 | . . . . . 1 . . . . . 7 . Builder 9 | . . . . . . . . . . . 9 . Tunneler 2 | 2 . . . . . . . . . . . . Hauler 5 | . . . . . 2 . . . . 2 1 . Recycler 7 | 1 . . . . 1 . . . . 1 4 . Minesweeper 1 | . . . . . . . . . 1 . . . Mechanic 2 | . . . . . . . . . . 1 1 . Operator 1 | . . . . . 1 . . . . . . . Turret 1 | . . 1 . . . . . . . . . . Swarmer 32 | . . 15 . . . 2 2 . 4 . 9 . Grunt 29 | . . 4 . . 13 2 . . 2 4 3 1 Brawler 3 | . . . . . 1 . 1 . . . 1 . Protector 1 | . . . . . . . . . . . 1 . Researcher 1 | . . . . . . . 1 . . . . . Sentry 8 | . . 1 2 . . 1 . . . 1 . 3 Hunter 7 | . . . . . . . . . 1 1 5 . Programmer 3 | . . . . . . . . . . 3 . . Subdweller 7 | . . 7 . . . . . . . . . . Decomposer 2 | . . . . . . . 2 . . . . . Thug 1 | . . . . . . . . . . . 1 . Savage 1 | . . . . . . . 1 . . . . . Butcher 1 | . . . . . . 1 . . . . . . Mutant 1 | . . . . . . . 1 . . . . . Best Kill Streak 14 | 3 . 5 2 . 6 2 2 . 2 4 14 3 Combat Bots Only 8 | . . 5 2 . 4 2 2 . 2 4 8 3 Max Kills in Single Turn 5 | 1 . 3 1 . 3 1 1 . 1 1 5 1 Gunslinging . | . . . . . . . . . . . . . Exploded 5 | . . 3 . . 3 . . . . . 5 . Melee 1 | . . . . . 1 1 1 . 1 1 1 . Uniques/NPCs Destroyed . | . . . . . . . . . . . . . Combat | -11 -10 -10 -9 -9 -6 -6 -6 -6 -5 -5 -4 -4 -------- Run | Yrd Mat Sub Rec Scr Fac Low Low Dat Pro Fac Fac Arm Hostile Shots Fired 1006 | . . 133 9 . 112 89 41 . 77 159 259 127 Missed 317 | . . 31 3 . 32 28 12 . 18 42 103 48 Deflected 9 | . . . . . . . 3 . 6 . . . Hits 689 | . . 102 6 . 80 61 29 . 59 117 156 79 Melee 13 | . . . . . 2 . 1 . . . 5 5 Projectile 676 | . . 102 6 . 78 61 28 . 59 117 151 74 Critical Strikes 42 | . . . . . 6 . . . 1 16 11 8 Actively Blocked 1 | . . . . . . . . . . . . 1 Part Disruptions 2 | . . . . . . 2 . . . . . . Damage Taken 12601 | . . 1485 82 . 1502 705 418 . 762 2267 3300 2080 Core 2488 | . . 343 24 . 174 118 43 . 79 227 421 1059 Absorbed by Shields . | . . . . . . . . . . . . . Redirected to Shielding 93 | . . . . . 10 . 10 . 29 . . 44 Ignored by Resistances 168 | . . . . . . . . . 35 26 71 36 Core Remaining (%) 83 | 100 . . . 73 . . . . 81 79 . . Volleys Fired 255 | 6 . 136 10 3 31 . 8 . . . 35 26 Largest 5 | 2 . 5 1 1 2 . 1 . . . 1 2 Hottest 317 | 40 . 317 60 5 148 . 90 . . . 98 98 Shots Fired 408 | 12 . 248 10 3 57 2 8 . . . 35 33 Gun 317 | 12 . 218 10 . 55 . . . . . . 22 Cannon 55 | . . 28 . . 2 2 8 . . . 12 3 Launcher 25 | . . 2 . . . . . . . . 23 . Special 11 | . . . . 3 . . . . . . . 8 Kinetic 191 | 12 . 148 . . . . . . . . 10 21 Thermal 154 | . . 100 10 . 28 2 8 . . . 2 4 Explosive 5 | . . . . . . . . . . . 5 . Electromagnetic 47 | . . . . . 29 . . . . . 18 . Robot Hit Streak 10 | 7 . 10 3 2 6 4 7 . . . 7 8 Robot Miss Streak 6 | 2 . 6 1 1 5 . 2 . . . 4 2 Penetration Max 2 | . . . . . . . . . . . 2 . Secondary Targets 3 | . . 3 . . . . . . . . . . Max Gunslinging Chain 1 | . . 1 . . . . . . . . . . Shots Hit Robots 298 | 7 . 74 4 2 55 19 23 . 15 44 36 19 Core Hits 190 | 4 . 31 1 . 27 8 9 . 10 19 71 10 Critical Kills 8 | . . 2 . . 1 . . . . . 2 3 Critical Parts Destroyed 10 | . . . 2 . . . . . . . 7 1 Critical Strikes 30 | . . 2 2 . 4 2 2 . . 2 11 5 Meltdown 1 | . . 1 . . . . . . . . . . Destroy 17 | . . 1 . . 2 . . . . . 9 5 Smash 2 | . . . 2 . . . . . . . . . Melee Attacks 222 | . . . 5 . 46 24 28 . 19 65 33 2 Impact 5 | . . . 5 . . . . . . . . . Slashing 217 | . . . . . 46 24 28 . 19 65 33 2 Piercing . | . . . . . . . . . . . . . Sneak Attacks 27 | . . . 1 . 3 5 11 . 1 3 3 . Combat Hostiles 1 | . . . . . . . . . . . 1 . Follow-up Attacks 5 | . . . . . 2 . . . 1 1 1 . Martial Strikes 16 | . . . . . . . 5 . 9 2 . . Damage Inflicted 14167 | 76 . 1702 138 . 2576 784 1241 . 701 1990 4677 282 Guns 2318 | 76 . 1280 43 . 801 . . . . . . 118 Cannons 901 | . . 268 . . 57 . 173 . . 103 171 129 Explosions 4611 | . . 154 . . 722 . . . . . 3713 22 Melee 6324 | . . . 95 . 996 784 1068 . 701 1887 793 . Ramming 13 | . . . . . . . . . . . . 13 Kinetic 1640 | 76 . 1078 . . . . . . . 103 171 212 Thermal 2773 | . . 624 43 . 1130 . 173 . . . 746 57 Explosive 1389 | . . . . . . . . . . . 1389 . Electromagnetic 2028 | . . . . . 450 . . . . . 1578 . Impact 95 | . . . 95 . . . . . . . . . Slashing 6229 | . . . . . 996 784 1068 . 701 1887 793 . Piercing . | . . . . . . . . . . . . . Highest Corruption 19 | . . 4 . . 1 11 14 . . 19 14 6 Average Corruption 6 | . . 2 . . 1 6 12 . . 16 6 6 Corruption Purged . | . . . . . . . . . . . . . Corruption Blocked . | . . . . . . . . . . . . . Effects 91 | . . 17 . . 1 16 23 . . 13 11 10 Message Errors 24 | . . 5 . . . 4 9 . . 2 3 1 Matter Fused 22 | . . 4 . . 1 4 5 . . 4 1 3 Heat Flow Errors 10 | . . 1 . . . 1 3 . . 2 1 2 Energy Discharges 15 | . . 4 . . . 3 4 . . 1 2 1 Parts Rejected 1 | . . . . . . . . . . . . 1 Data Loss (minor) 9 | . . . . . . 2 2 . . 3 1 1 Data Loss (major) 2 | . . . . . . . . . . . 2 . Misfires 2 | . . . . . . 2 . . . . . . Alerts 2 | . . 1 . . . . . . . . . 1 Misdirections 2 | . . . . . . . . . . 1 1 . Weapon Failures 2 | . . 2 . . . . . . . . . . Overload Shots . | . . . . . . . . . . . . . Overflow Damage 1169 | . . 29 90 . 160 42 294 . 85 229 240 . Projectiles 118 | . . 18 . . . . . . . 100 . . Explosions 146 | . . 11 . . 2 . . . . . 133 . Melee 905 | . . . 90 . 158 42 294 . 85 129 107 . Knockbacks 2 | . . . . . . . . . . . 2 . Impact . | . . . . . . . . . . . . . Kinetic 2 | . . . . . . . . . . . 2 . Secondary . | . . . . . . . . . . . . . Self-Inflicted Damage 517 | . . 7 . . . . . . . . 456 54 Shots 13 | . . 1 . . . . . . . . 11 1 Rammed 3 | . . . . . . . . . . . . 3 Targets Rammed 3 | . . . . . . . . . . . . 3 Kicked . | . . . . . . . . . . . . . Crushed . | . . . . . . . . . . . . . Highest Temperature 412 | . . 390 224 . 412 345 320 . . 273 283 150 Average Temperature 115 | . . 104 94 . 143 102 141 . . 92 115 50 Received Heat Transfer 2097 | . . 240 18 . 711 180 9 . 27 306 401 205 Effects 6 | . . 3 . . 2 . . . . . 1 . Shutdowns 1 | . . 1 . . . . . . . . . . Energy Bleed 3 | . . . . . 2 . . . . . 1 . Interference 2 | . . 2 . . . . . . . . . . Siege Activations . | . . . . . . . . . . . . . Martial Activations 9 | . . . . . . . 2 . 3 4 . . Total Turns 336 | . . . . . . . 42 . 250 44 . . Longest Duration 116 | . . . . . . . 28 . 116 15 . . Shielding Activations 1 | . . . . . . . . . . . 1 . Total Turns 2 | . . . . . . . . . . . 2 . Longest Duration 2 | . . . . . . . . . . . 2 . Robots Disrupted 1 | . . . . . . . . . . . 1 . Combat Hostiles . | . . . . . . . . . . . . . Robots Corrupted 5 | . . . 1 . . . . . . . 4 . Combat Hostiles 5 | . . . 1 . . . . . . . 4 . Parts Fried 8 | . . . 3 . 1 . . . . . 4 . Impact Corruptions 3 | . . . 3 . . . . . . . . . Robots Melted 1 | . . 1 . . . . . . . . . . Combat Hostiles 1 | . . 1 . . . . . . . . . . Parts Melted 2 | . . 1 . . . . . . . . 1 . Heat Transferred 3043 | . . 916 50 . 955 . 222 . . . 800 100 Parts Sabotaged 3 | . . . . . . . . . . . . 3 Parts Stolen . | . . . . . . . . . . . . . Parts Stripped . | . . . . . . . . . . . . . Power Chain Reactions 6 | . . . . . 1 . . . . . 5 . Alert | -11 -10 -10 -9 -9 -6 -6 -6 -6 -5 -5 -4 -4 ------- Run | Yrd Mat Sub Rec Scr Fac Low Low Dat Pro Fac Fac Arm Maximum Alert Level 2 | . . . . . 2 . . . . . 2 1 Low Security (%) 68 | 100 100 . 100 . 44 . . . . 100 60 24 Level 1 25 | . . . . . 42 . . . . . 27 75 Level 2 5 | . . . . . 12 . . . . . 11 . Level 3 . | . . . . . . . . . . . . . Level 4 . | . . . . . . . . . . . . . Level 5 . | . . . . . . . . . . . . . High Security . | . . . . . . . . . . . . . Max Security . | . . . . . . . . . . . . . Peak Influence 690 | 5 5 . 170 . 509 . . . . 142 690 314 Initial 240 | . . . 94 . . . . . . . 60 240 Average 139 | . . . 113 . 209 . . . . 68 161 224 Influence Increases 4309 | 15 10 558 150 . 926 165 231 . 245 465 1121 423 Destroy 0b10 Robot/C 2400 | . . 540 40 . 440 140 180 . 180 280 520 80 Destroy 0b10 Robot/NC 210 | 15 . . . . 45 . . . 10 25 115 . Destroy Leader 342 | . . . . . 86 10 30 . 20 64 92 40 Allied During Kill 235 | . . 18 . . 35 15 21 . 20 12 105 9 Successful Hack 60 | . 10 . 18 . 18 . . . . . . 14 Select Force Hacks 90 | . . . 90 . . . . . . . . . Disable Machine 210 | . . . . . 60 . . . . 30 90 30 Destroy Structure 287 | . . . 2 . 37 . . . . 54 154 40 Partial Spotted 15 | . . . . . . . . . . . 15 . Lose Combat Pursuer 360 | . . . . . 105 . . . 15 . 30 210 Active Sensor Use 100 | . . . . . 100 . . . . . . . Influence Decreases 4050 | 15 10 360 264 84 424 501 376 21 245 342 754 654 Entered New Map 741 | . . . 104 84 . 187 32 21 . . 63 250 Time Decay 2394 | 15 10 275 150 . 334 294 334 . 235 302 231 214 Lost Part 540 | . . 50 10 . 70 20 10 . 10 20 260 90 Lost Ally 375 | . . 35 . . 20 . . . . 20 200 100 Squads Dispatched 31 | . . . . . 10 . . . . 6 9 6 Investigation 9 | . . . . . 4 . . . . 3 2 . Extermination 6 | . . . . . 2 . . . . 2 1 1 Reinforcement 12 | . . . . . 4 . . . . 1 2 5 Assault . | . . . . . . . . . . . . . Garrison 4 | . . . . . . . . . . . 4 . Intercept . | . . . . . . . . . . . . . Searches Triggered . | . . . . . . . . . . . . . Data Miner Redirects 2 | . . . . . . . . . . 1 1 . Construction Impeded 2 | . . . . . . . . . . . 2 . Haulers Reinforced 2 | . . . . . 1 . . . . 1 . . Active Scanning Responses 1 | . . . . . 1 . . . . . . . Cargo Convoy Interrupts 2 | . . . . . . . . . . 1 1 . Stealth | -11 -10 -10 -9 -9 -6 -6 -6 -6 -5 -5 -4 -4 --------- Run | Yrd Mat Sub Rec Scr Fac Low Low Dat Pro Fac Fac Arm Distress Signals 3 | . . . . . . . . . . . 2 1 Communications Jammed 15 | . . . . . . . . . . . 15 . Distress Signals 15 | . . . . . . . . . . . 15 . Times Spotted 212 | . . 39 2 . 31 7 9 . 11 17 55 41 Peak Tracking Total 18 | . . 3 2 . 6 4 4 . 5 4 11 18 Tactical Retreats 11 | . . . . . 4 . . . 1 . 1 5 Traps | -11 -10 -10 -9 -9 -6 -6 -6 -6 -5 -5 -4 -4 ------- Run | Yrd Mat Sub Rec Scr Fac Low Low Dat Pro Fac Fac Arm Traps Triggered 7 | . . 2 . . . 1 . . . . 2 2 Indirectly 1 | . . . . . . . . . . . 1 . Trap Hack Attempts . | . . . . . . . . . . . . . Triggered . | . . . . . . . . . . . . . Disarmed . | . . . . . . . . . . . . . Reprogrammed . | . . . . . . . . . . . . . Reused . | . . . . . . . . . . . . . Traps Extracted . | . . . . . . . . . . . . . Installed 1 | . . . . . . 1 . . . . . . Triggered . | . . . . . . . . . . . . . Machines | -11 -10 -10 -9 -9 -6 -6 -6 -6 -5 -5 -4 -4 ---------- Run | Yrd Mat Sub Rec Scr Fac Low Low Dat Pro Fac Fac Arm Machines Disabled 21 | . . 2 . . 4 . . . . 2 11 2 Max in Single Turn 3 | . . 1 . . 2 . . . . 1 3 1 Energy Cycler 1 | . . . . . . . . . . . . 1 Machines Repaired . | . . . . . . . . . . . . . Machines Dismantled . | . . . . . . . . . . . . . Machines Sabotaged . | . . . . . . . . . . . . . Overloaded Fab Kills . | . . . . . . . . . . . . . Hacking | -11 -10 -10 -9 -9 -6 -6 -6 -6 -5 -5 -4 -4 --------- Run | Yrd Mat Sub Rec Scr Fac Low Low Dat Pro Fac Fac Arm Machines Accessed 31 | . 3 2 5 3 4 . . 3 . 5 3 3 Terminals 11 | . 3 . 2 . 1 . . . . 2 1 2 Fabricators 2 | . . . . . . . . . . 1 . 1 Repair Stations . | . . . . . . . . . . . . . Recycling Units 9 | . . . 3 . 3 . . . . 2 1 . Scanalyzers . | . . . . . . . . . . . . . Garrison Access 1 | . . . . . . . . . . . 1 . Total Hacks 83 | . 10 5 14 7 7 . . 20 . 8 5 7 Successful 55 | . 6 5 7 7 4 . . 20 . 2 1 3 Failed 28 | . 4 . 7 . 3 . . . . 6 4 4 Catastrophic 9 | . . . . . 2 . . . . 4 2 1 Database Lockouts . | . . . . . . . . . . . . . Manual 29 | . 11 . 8 . 4 . . . . 5 1 . Terminals 24 | . 10 . 4 . 2 . . . . 3 1 4 Fabricators 4 | . . . . . . . . . . 1 . 3 Repair Stations . | . . . . . . . . . . . . . Recycling Units 20 | . . . 10 . 5 . . . . 4 1 . Scanalyzers . | . . . . . . . . . . . . . Garrison Access 3 | . . . . . . . . . . . 3 . Terminal Hacks 36 | . 1 5 . 7 1 . . 20 . . . 2 Record 15 | . . 4 . 5 . . . 6 . . . . Part Schematic 8 | . . . . . . . . 8 . . . . Robot Schematic 3 | . . . . . . . . 3 . . . . Prototype ID Bank 3 | . . . . . . . . 3 . . . . Open Door 1 | . . . . 1 . . . . . . . . Level Access Points 1 | . . . . . 1 . . . . . . . Emergency Access Points 1 | . . . . . . . . . . . . 1 Terminal Index 1 | . 1 . . . . . . . . . . . Zone Layout 1 | . . . . . . . . . . . . 1 Proto ID Catalog 2 | . . 1 . 1 . . . . . . . . Fabricator Hacks 1 | . . . . . . . . . . . . 1 Load Schematic 1 | . . . . . . . . . . . . 1 Repair Station Hacks . | . . . . . . . . . . . . . Recycling Unit Hacks 2 | . . . 2 . . . . . . . . . Retrieve Components 2 | . . . 2 . . . . . . . . . Scanalyzer . | . . . . . . . . . . . . . Garrison Access Hacks . | . . . . . . . . . . . . . Unauthorized Hacks 16 | . 5 . 5 . 3 . . . . 2 1 . Terminals 7 | . 5 . 2 . . . . . . . . . Botnet 1 | . 1 . . . . . . . . . . . Operators 1 | . 1 . . . . . . . . . . . Skim 5 | . 3 . 2 . . . . . . . . . Fabricators . | . . . . . . . . . . . . . Repair Stations . | . . . . . . . . . . . . . Recycling Units 9 | . . . 3 . 3 . . . . 2 1 . Tunnel 3 | . . . 3 . . . . . . . . . Fedlink 6 | . . . . . 3 . . . . 2 1 . Scanalyzers . | . . . . . . . . . . . . . Garrison Access . | . . . . . . . . . . . . . Data Cores Recovered . | . . . . . . . . . . . . . Used . | . . . . . . . . . . . . . Hacking Detections 17 | . 3 . 4 . 2 . . . . 3 2 3 Full Trace Events 2 | . . . . . . . . . . 1 1 . Feedback Events 1 | . . . . . . . . . . . 1 . Corruption 1 | . . . . . . . . . . . 1 . Feedback Blocked . | . . . . . . . . . . . . . Robot Schematics Acquired 3 | . . . . . . . . 3 . . . . Robots Built . | . . . . . . . . . . . . . Authchips . | . . . . . . . . . . . . . Time . | . . . . . . . . . . . . . Total Robot Build Rating . | . . . . . . . . . . . . . Part Schematics Acquired 8 | . . . . . . . . 8 . . . . Parts Built . | . . . . . . . . . . . . . Authchips . | . . . . . . . . . . . . . Time . | . . . . . . . . . . . . . Total Part Build Rating . | . . . . . . . . . . . . . Part Studies Acquired . | . . . . . . . . . . . . . Parts Repaired . | . . . . . . . . . . . . . Time . | . . . . . . . . . . . . . Parts Recycled . | . . . . . . . . . . . . . Recycled Matter . | . . . . . . . . . . . . . Retrieved Matter . | . . . . . . . . . . . . . Retrieved Components 5 | . . . 5 . . . . . . . . . Parts Scanalyzed . | . . . . . . . . . . . . . Part Schematics Acquired . | . . . . . . . . . . . . . Parts Damaged . | . . . . . . . . . . . . . Bothacking | -11 -10 -10 -9 -9 -6 -6 -6 -6 -5 -5 -4 -4 ------------ Run | Yrd Mat Sub Rec Scr Fac Low Low Dat Pro Fac Fac Arm Used RIF Installer . | . . . . . . . . . . . . . Robots Hacked 2 | . . . . 2 . . . . . . . . Non-combat . | . . . . . . . . . . . . . Combat 2 | . . . . 2 . . . . . . . . Robot Hacks Applied 2 | . . . . 2 . . . . . . . . parse_system 2 | . . . . 2 . . . . . . . . Relay Couplers Released . | . . . . . . . . . . . . . Fabnet Peak Effective % . | . . . . . . . . . . . . . Robots Rewired 1 | . . . . . . . . . . . 1 . Allies Hacked . | . . . . . . . . . . . . . Hacks Repelled . | . . . . . . . . . . . . . Allies | -11 -10 -10 -9 -9 -6 -6 -6 -6 -5 -5 -4 -4 -------- Run | Yrd Mat Sub Rec Scr Fac Low Low Dat Pro Fac Fac Arm Total Allies 25 | . . 6 . 1 1 . . . . . 12 5 Largest Group 6 | . . 3 . 1 1 1 1 1 1 1 6 3 Highest-Rated Group 355 | . . 65 . 54 116 116 116 116 116 116 355 90 Highest-Rated Ally 116 | . . 37 . 54 116 116 116 116 116 116 81 59 Initial UFD Resources 70 | . . . . . 24 40 40 40 44 44 60 70 Total Orders . | . . . . . . . . . . . . . Ally Attacks 157 | . . 20 . . 36 5 21 . 4 17 47 7 Total Damage 6637 | . . 352 . . 1309 200 1328 . 77 986 2194 191 Kills 42 | . . 6 . . 12 2 6 . 2 6 8 . Allies Corrupted 1 | . . . . . . . . . . . . 1 Allies Melted . | . . . . . . . . . . . . . X0-1V1 Amusement Gains 286 | . 8 12 8 52 22 9 11 2 8 10 90 54 Good Acts 115 | . . 50 6 . 4 2 7 . 4 7 16 19 Bad Acts 72 | . . 44 . . 5 1 4 . 5 4 2 7 Intel | -11 -10 -10 -9 -9 -6 -6 -6 -6 -5 -5 -4 -4 ------- Run | Yrd Mat Sub Rec Scr Fac Low Low Dat Pro Fac Fac Arm Active Infowar (turns) 5354 | 65 159 1052 . . 651 567 844 114 157 936 684 125 Optics 1902 | . . . . . . . . . 157 936 684 125 A.S.S. 278 | . . . . . 119 159 . . . . . . IFF 805 | . . . . . 583 54 . . . . 168 . Traps 835 | . . . . . . . . . . 73 684 78 Seismic 1276 | 65 159 1052 . . . . . . . . . . Triangulation 706 | . . . . . . . 592 114 . . . . Jamming 814 | . . . . . . 408 252 . . . 154 . ECM 1 | . . . . . . . 1 . . . . . Robot Analysis Total . | . . . . . . . . . . . . . Derelict Logs Recovered 5 | . . 1 . . . 1 . . 3 . . . Drone Launches . | . . . . . . . . . . . . . Drone Recoveries . | . . . . . . . . . . . . . Exploration | -11 -10 -10 -9 -9 -6 -6 -6 -6 -5 -5 -4 -4 ------------- Run | Yrd Mat Sub Rec Scr Fac Low Low Dat Pro Fac Fac Arm Turns Passed 12706 | 113 164 2348 302 4290 867 651 1069 114 714 936 684 454 Spaces Moved 7781 | 59 96 1563 210 2367 451 379 736 83 449 556 393 439 Core 266 | 21 . 1 2 . . . . . . . 1 241 Treads 405 | 38 96 210 17 44 . . . . . . . . Legs 4637 | . . . . 1613 451 379 736 83 449 556 370 . Wheels 2275 | . . 1352 191 710 . . . . . . 22 . Hover . | . . . . . . . . . . . . . Flight 198 | . . . . . . . . . . . . 198 Fastest Speed 29 | 50 160 80 105 105 112 105 113 113 107 104 102 29 Average Speed 120 | 120 160 120 121 129 123 128 116 113 136 118 110 60 Slowest Speed 850 | 160 160 550 400 260 190 265 226 113 230 244 800 850 Overloaded Moves 102 | . . . . . . . 7 . 90 5 . . Propulsion Burnouts . | . . . . . . . . . . . . . Robots Hopped 7 | . . . . . . . . . . . . 7 Potential Cave-ins 9 | . . 9 . . . . . . . . . . Cave-ins Triggered . | . . . . . . . . . . . . . Exploration Rate (%) 45 | 4 18 89 42 85 17 52 80 68 71 19 16 34 Regions Visited 12 Branch Regions 8 Pre-discovered Areas 7 | . . 1 3 1 1 . . 1 . . . . Known Exits Taken 6 | . . 1 . . 1 . 1 . 1 1 1 . Unknown Exits Taken 6 | 1 1 . 1 1 . 1 . 1 . . . . Scrap Searched 15 | . . 2 . 7 . 2 3 . 1 . . . Spaces Dug 66 | . . 40 2 . 5 1 4 . . 6 6 2 Terrain Destroyed 227 | . . 62 4 . 27 2 5 . . 6 95 26 Melee 26 | . . . 2 . 5 1 4 . . 6 6 2 Projectile 57 | . . 51 2 . 1 1 1 . . . . 1 AOE 143 | . . 11 . . 21 . . . . . 89 22 Terrain Rammed . | . . . . . . . . . . . . . Walls Destroyed . | . . . . . . . . . . . . . Machines Disabled . | . . . . . . . . . . . . . Actions | -11 -10 -10 -9 -9 -6 -6 -6 -6 -5 -5 -4 -4 --------- Run | Yrd Mat Sub Rec Scr Fac Low Low Dat Pro Fac Fac Arm Total 10413 | 90 106 1802 239 3606 637 510 907 103 532 742 560 579 Wait 1757 | 8 3 20 6 1182 80 79 121 21 63 85 47 42 Move 7756 | 58 95 1562 209 2366 450 378 735 82 448 555 392 426 Hop 6 | . . . . . . . . . . . . 6 Pick Up 129 | 11 3 24 1 23 11 12 10 . 4 14 15 1 Fast Attach 47 | . . 12 2 2 4 5 . . 1 5 3 13 Attach 83 | 7 . 15 . 6 11 2 4 . 1 6 18 13 Detach 20 | . . 4 . . 2 . . . . . 1 13 Swap 25 | . 3 7 . . . 2 2 . . 3 8 . Drop 99 | . 2 21 4 24 4 7 4 . 4 12 8 9 Fire 255 | 6 . 136 10 3 31 . 8 . . . 35 26 Melee 201 | . . . 5 . 44 24 23 . 9 62 32 2 Ram 3 | . . . . . . . . . . . . 3 Kick . | . . . . . . . . . . . . . Crush . | . . . . . . . . . . . . . Escape Stasis . | . . . . . . . . . . . . . Rewire 30 | . . . 2 . . . . . 2 . 1 25 Trap 1 | . . . . . . 1 . . . . . . Miscellaneous 1 | . . 1 . . . . . . . . . . Route ------- -11/Scrapyard -10/Materials -10/Subcaves (discovered 2 exits: *Mat / *Rec) -9/Recycling (discovered 2 exits: Fac / *Scr) -9/Scraptown (discovered 2 exits: *Fac x2) -6/Factory (discovered 5 exits: Fac x4 / *Low) -6/Lower Caves -6/Lower Caves (discovered 2 exits: Fac / *Dat) -6/Data Miner -5/Proximity Caves -5/Factory (discovered 5 exits: *Fac x4 / Upp) -4/Factory (discovered 2 exits: Res / *Arm) -4/Armory (discovered 3 exits: Res x2 / Lab) History --------- Turn | Location | Event 4 | -11/Scrapyard | Discovered new exit (range 15) 114 | -11/Scrapyard | Entered Materials 257 | -10/Materials | Discovered new exit (range 8) 268 | -10/Materials | Prayed at D.C.S.S. Altar Unit 278 | -10/Materials | Entered Subcaves 278 | -10/Subcaves | Learned Materials emergency access door positions 279 | -10/Subcaves | Approached by a straggling Scientist 301 | -10/Subcaves | Core integrity permanently improved by X0-1V1 (+200) 302 | -10/Subcaves | Build established: Mutant 335 | -10/Subcaves | Shifting Twisted Machinery released Flamer 570 | -10/Subcaves | Identified exit to Materials 570 | -10/Subcaves | X0-1V1 revealed exit location to -8/Materials 632 | -10/Subcaves | X0-1V1 sent hostile G-34 Mercenary (x3) 660 | -10/Subcaves | X0-1V1 sent you into danger 946 | -10/Subcaves | Shifting Twisted Machinery released Sub. Power Source 1119 | -10/Subcaves | Ambushed by Subdweller buried in earth 1156 | -10/Subcaves | Propulsion slot count permanently improved by X0-1V1 (+1) 1166 | -10/Subcaves | X0-1V1 mutated your Propulsion slot to Power slot 1169 | -10/Subcaves | X0-1V1 revealed exit location to -8/Materials 1171 | -10/Subcaves | Ambushed by Subdweller buried in earth 1192 | -10/Subcaves | X0-1V1 sent hostile S-10 Pest (x3) 1274 | -10/Subcaves | Core integrity fell below 50% 1326 | -10/Subcaves | Visited triangular shrine 1332 | -10/Subcaves | Found Prototype Device 1333 | -10/Subcaves | Identified V3-11A's Pendant 1338 | -10/Subcaves | Befriended Subdweller 1343 | -10/Subcaves | X0-1V1 sent hostile S-10 Pest (x3) 1427 | -10/Subcaves | Visited Clippyterm 1430 | -10/Subcaves | Learned location of Section 7 (-3) 1430 | -10/Subcaves | Learned Factory stockpile data 1513 | -10/Subcaves | Befriended Subdweller 1513 | -10/Subcaves | Befriended Subdweller 1529 | -10/Subcaves | Visited 4L-MR0's lab 1534 | -10/Subcaves | Found Prototype Device 1540 | -10/Subcaves | Found Flightbrick 1566 | -10/Subcaves | Shifting Twisted Machinery released Sub. Laser 1605 | -10/Subcaves | Inventory capacity permanently improved by X0-1V1 (+1; -100 max core) 1609 | -10/Subcaves | X0-1V1 mutated your Utility slot to Weapon slot 1613 | -10/Subcaves | Core integrity restored by X0-1V1 (+80) 1621 | -10/Subcaves | Identified exit to Recycling 1621 | -10/Subcaves | X0-1V1 revealed exit location to -9/Recycling 1625 | -10/Subcaves | X0-1V1 rewrote HG-JN7(R) IFF filter 1626 | -10/Subcaves | X0-1V1 activates XOMVISION 1655 | -10/Subcaves | Shifting Twisted Machinery released Barrage Gun 1664 | -10/Subcaves | Core integrity restored by X0-1V1 (+94) 1669 | -10/Subcaves | X0-1V1 mutated your Weapon slot to Propulsion slot 1706 | -10/Subcaves | X0-1V1 rewrote UA-ARY(R) IFF filter 1707 | -10/Subcaves | Weapon slot count temporarily expanded by X0-1V1 (+4) 1768 | -10/Subcaves | Befriended Subdweller 1779 | -10/Subcaves | X0-1V1 sent you into danger 1824 | -10/Subcaves | A swath of the cavern ceiling suddenly collapsed 1824 | -10/Subcaves | X0-1V1 sent hostile G-34 Mercenary (x3) 1841 | -10/Subcaves | X0-1V1 rewrote SZ-2L7(R) IFF filter 1862 | -10/Subcaves | X0-1V1 mutated your Propulsion slot to Utility slot 1872 | -10/Subcaves | X0-1V1 tapped a No Entrance sign 1920 | -10/Subcaves | X0-1V1 activates XOMVISION 2127 | -10/Subcaves | Befriended Subdweller 2127 | -10/Subcaves | Befriended Subdweller 2143 | -10/Subcaves | Build established: Scavenger-Executioner 2316 | -10/Subcaves | X0-1V1 sent hostile S-10 Pest (x3) 2331 | -10/Subcaves | X0-1V1 mutated your Utility slot to Weapon slot 2370 | -10/Subcaves | X0-1V1 sent hostile S-10 Pest (x3) 2378 | -10/Subcaves | X0-1V1 activates XOMVISION 2572 | -10/Subcaves | Identified Sfc. Transmogrifier 2572 | -10/Subcaves | Forcibly received Sfc. Transmogifier from X0-1V1 2585 | -10/Subcaves | X0-1V1 activates XOMVISION 2626 | -10/Subcaves | Entered Recycling 2629 | -9/Recycling | Identified exit to Factory 2629 | -9/Recycling | X0-1V1 revealed exit location to -7/Factory 2900 | -9/Recycling | Scanned before Scraplab entrance 2918 | -9/Recycling | Entered Scraplab 2927 | -9/Recycling | Discovered new exit (range 2) 2928 | -9/Recycling | Entered Scraptown 2932 | -9/Scraptown | Build established: Mutant 2971 | -9/Scraptown | Visited Red Mages 2987 | -9/Scraptown | Visited Symbiants 2996 | -9/Scraptown | Visited Bundlers 3068 | -9/Scraptown | Visited Awakened 3075 | -9/Scraptown | Visited SPCMW 3109 | -9/Scraptown | Visited UFD Registry 3109 | -9/Scraptown | Registered with UFD as "Hardbox" 3312 | -9/Scraptown | Learned location of Extension (-6) 3335 | -9/Scraptown | Delivered V3-11A's Pendant to T0-NE2 in exchange for information 3516 | -9/Scraptown | Discovered new exit (range 13) 3618 | -9/Scraptown | Visited Botcube Research 3635 | -9/Scraptown | Visited Junk Cannon Lab 3651 | -9/Scraptown | Visited Sword Containment 3666 | -9/Scraptown | Visited Infowarlord's Domain 3681 | -9/Scraptown | Visited Scrapoid Pod Storage 3697 | -9/Scraptown | Visited Abandonware Association 3710 | -9/Scraptown | Learned abandonware demo "SHUTEYE.EXE" 3710 | -9/Scraptown | Learned abandonware demo "REVENGE.EXE" 3731 | -9/Scraptown | Visited Modified Component R&D 3769 | -9/Scraptown | Visited Chapter 10 3788 | -9/Scraptown | Visited Science Testing Area 3818 | -9/Scraptown | Visited Science Guys 3937 | -9/Scraptown | Found Prototype Special Weapon 3940 | -9/Scraptown | Identified Junk Cannon 4462 | -9/Scraptown | Build established: Gunner 4842 | -9/Scraptown | Build established: Mutant 5581 | -9/Scraptown | Found Botcube 6662 | -9/Scraptown | Found Active Sensor Suite 6691 | -9/Scraptown | Build established: Gunner 6695 | -9/Scraptown | Found Prototype Slashing Weapon 6696 | -9/Scraptown | Identified Companion Sword 6914 | -9/Scraptown | Found Scrap Suit 6958 | -9/Scraptown | Botcube activated 6978 | -9/Scraptown | Botcube completed mutation into treaded form, armed with 2 cannons. 6994 | -9/Scraptown | Build established: Mutant 7138 | -9/Scraptown | Met Optimus 7138 | -9/Scraptown | Accepted into 0bPrime 7204 | -9/Scraptown | Discovered new exit (range 3) 7218 | -9/Scraptown | Entered Factory 7218 | -6/Factory | Accompanied by 1 ally 7218 | -6/Factory | Evolved 8 slots: Propulsion x2, Utility x6 7392 | -6/Factory | Identified exit to Factory 7435 | -6/Factory | Identified exit to Lower Caves 7435 | -6/Factory | X0-1V1 revealed exit location to -6/Lower Caves 7478 | -6/Factory | X0-1V1 announced a LAN party 7562 | -6/Factory | Sensors blinded by X0-1V1 7686 | -6/Factory | X0-1V1 mutated your Weapon slot to Propulsion slot 7712 | -6/Factory | Loaded intel: 8 recycling unit locations 7856 | -6/Factory | Lost 5 parts (2n2u1w) 7895 | -6/Factory | Learned location of Protoforge (-3) 7951 | -6/Factory | X0-1V1 sent allied B-86 Titan (x1) 8085 | -6/Factory | Entered Lower Caves 8085 | -6/Lower Caves | Accompanied by 1 ally 8097 | -6/Lower Caves | Learned 12 Factory zone layouts 8184 | -6/Lower Caves | Attracted the attention of an 0b10 checkpoint 8354 | -6/Lower Caves | System corruption reached 10% 8384 | -6/Lower Caves | Encountered a Warlord checkpoint 8647 | -6/Lower Caves | Build established: Hacker-Mutant 8655 | -6/Lower Caves | Discovered new exit (range 6) 8736 | -6/Lower Caves | Entered another Lower Caves area 8736 | -6/Lower Caves | Accompanied by 1 ally 8772 | -6/Lower Caves | Spotted B-75 Beast 8814 | -6/Lower Caves | Prototype Device suddenly appears! 8817 | -6/Lower Caves | Allies destroyed B-75 Beast 8831 | -6/Lower Caves | Found Prototype Device 8889 | -6/Lower Caves | X0-1V1 mutated your Weapon slot to Utility slot 9007 | -6/Lower Caves | Build established: Mutant 9083 | -6/Lower Caves | X0-1V1 vaporized surrounding terrain (radius 18) 9104 | -6/Lower Caves | X0-1V1 revealed exit location to -5/Factory 9196 | -6/Lower Caves | X0-1V1 activates XOMVISION 9319 | -6/Lower Caves | Encountered a Warlord checkpoint 9428 | -6/Lower Caves | Found Alien Artifact 9429 | -6/Lower Caves | Identified Core Expander 9429 | -6/Lower Caves | Installed Core Expander, added new Propulsion slot 9648 | -6/Lower Caves | Identified exit to Data Miner 9648 | -6/Lower Caves | X0-1V1 revealed exit location to -6/Data Miner 9805 | -6/Lower Caves | Entered Data Miner 9805 | -6/Data Miner | Accompanied by 1 ally 9805 | -6/Data Miner | Discovered new exit (range 6) 9827 | -6/Data Miner | Met Data Miner 9846 | -6/Data Miner | Acquired the access code to Warlord's prototype stash 9868 | -6/Data Miner | Received God Mode back door access code from Data Miner 9919 | -6/Data Miner | Entered Proximity Caves 9919 | -5/Proximity Caves | Accompanied by 1 ally 10011 | -5/Proximity Caves | X0-1V1 revealed exit location to -5/Factory 10137 | -5/Proximity Caves | Learned Factory emergency access door positions 10171 | -5/Proximity Caves | Attracted the attention of an 0b10 checkpoint 10455 | -5/Proximity Caves | Core integrity restored by X0-1V1 (+237) 10476 | -5/Proximity Caves | X0-1V1 vaporized surrounding terrain (radius 21) 10483 | -5/Proximity Caves | X0-1V1 mutated your Utility slot to Propulsion slot 10533 | -5/Proximity Caves | Learned location of 1 exit from Factory 10608 | -5/Proximity Caves | X0-1V1 vaporized surrounding terrain (radius 21) 10609 | -5/Proximity Caves | Acquired the password to a Derelict Tinkerer's latest research 10615 | -5/Proximity Caves | Learned 4 Factory zone layouts 10620 | -5/Proximity Caves | Found Prototype Special Weapon 10633 | -5/Proximity Caves | Entered Factory 10633 | -5/Factory | Accompanied by 1 ally 10633 | -5/Factory | Evolved 2 slots: Utility x2 10634 | -5/Factory | Identified exit to Factory 10672 | -5/Factory | X0-1V1 vaporized surrounding terrain (radius 21) 11114 | -5/Factory | Loaded intel: 8 recycling unit locations 11206 | -5/Factory | System corruption reached 10% 11319 | -5/Factory | X0-1V1 foreshadows a heat wave 11467 | -5/Factory | Discovered exit to Factory (range 22) 11497 | -5/Factory | Ambient heat levels rising (+10) 11514 | -5/Factory | Identified exit to Upper Caves 11514 | -5/Factory | X0-1V1 revealed exit location to -5/Upper Caves 11528 | -5/Factory | Incoming investigation squad redirected 11554 | -5/Factory | Cargo convoy interrupted 11569 | -5/Factory | Entered another Factory area 11569 | -4/Factory | Evolved 2 slots: Power x1, Weapon x1 11636 | -4/Factory | X0-1V1 activates XOMVISION 11884 | -4/Factory | Garrison activated, responded to threat 11885 | -4/Factory | System corruption reached 10% 11923 | -4/Factory | Lost 3 parts (1p2u) 11943 | -4/Factory | X0-1V1 turns hostiles against one another 12000 | -4/Factory | Lost 4 parts (2n2u) 12038 | -4/Factory | Loaded intel: 8 recycling unit locations 12067 | -4/Factory | Incoming investigation squad redirected 12123 | -4/Factory | Identified Amulet of Y3-NDR 12132 | -4/Factory | Lost 4 parts (3n1u) 12146 | -4/Factory | Identified exit to Research 12146 | -4/Factory | X0-1V1 revealed exit location to -3/Research 12172 | -4/Factory | Discovered new exit (range 14) 12177 | -4/Factory | X0-1V1 sent allied Thug (x3) 12182 | -4/Factory | Joined by bewildered Wizard 12183 | -4/Factory | Joined by bewildered Wizard 12184 | -4/Factory | Joined by bewildered Wizard 12195 | -4/Factory | Destroyed 8 combat bots 12196 | -4/Factory | Garrison activated, responded to threat 12228 | -4/Factory | Lost 10 parts (3p4n1u2w) 12232 | -4/Factory | Lost 4 allies 12244 | -4/Factory | Cargo convoy interrupted 12244 | -4/Factory | Identified exit to Armory 12253 | -4/Factory | Entered Armory 12282 | -4/Armory | Lost 3 allies 12284 | -4/Armory | Lost 6 parts (2p3n1w) 12370 | -4/Armory | Energy Cycler disabled 12378 | -4/Armory | Identified Molecular Deconstructor 12385 | -4/Armory | Core integrity fell below 50% 12391 | -4/Armory | X0-1V1 sent hostile Guerrilla (x1) 12425 | -4/Armory | Lost 4 parts (2u2w) 12465 | -4/Armory | X0-1V1 activates XOMVISION 12493 | -4/Armory | X0-1V1 announced a LAN party 12494 | -4/Armory | X0-1V1 revealed exit location to -3/Research 12499 | -4/Armory | Core integrity restored by X0-1V1 (+200) 12522 | -4/Armory | X0-1V1 sent allied B-60 Warrior (x3) 12656 | -4/Armory | Core integrity fell below 20% 12662 | -4/Armory | X0-1V1 revealed exit location to -3/Research 12683 | -4/Armory | Spotted Armor Guard 12683 | -4/Armory | Spotted Armor Guard 12699 | -4/Armory | X0-1V1 sent allied Scrapper (x2) 12705 | -4/Armory | Identified exit to Lab 12705 | -4/Armory | X0-1V1 revealed exit location to -4/Lab 12707 | -4/Armory | Destroyed by H-71 Marshal with Heavy Mass Driver Last Messages --------------- shimmering waves of color. 12697_ Acquired Propulsion Shielding. 12699_ The cosmic winds blow in a new direction. OP-A5Q(j) form resolidifies at new position. 12699_ Transport Mainframe disabled. 12699_ ALERT: Hostile activity reported, dispatching reinforcements to area. 12699_ Critical hit (Burn: +50). 12700_ OP-A5Q(j): "Who are you, and why am I protecting you?" 12700_ OP-A5Q(j) destroyed. 12701_ X0-1V1 connects you with a stream of twisted latent energy (+9 energy generation). 12702_ Cesium-ion Thruster destroyed. 12705_ X0-1V1: "I guarantee there's even more fun over that way." 12705_ EXIT=REVEALED: LAB 12707_ Propulsion Shielding destroyed. 12707_ Cesium-ion Thruster destroyed. 12707_ X0-1V1 laughs nastily! Map ----- +----------------------------------------------------+ | ????????????????????????????????????????? | | ????????????????????????????????????????? | | ????????????????????????????????????????? | | ????????????????????????????????????????? | | ????????????????????????????????????????? | | ????????????????????????????????????????? | | ????????????????????????????????????????? | | ???????????????????????????????????? ?? | | ???????????????????????????????????? # | | ???????????????????????????????????? # | | ????????????????H??????????????????# # | | ???????????????? ??????????????????# # | | ???????????????? ??????????????????# # | | ???????????????? ??????????????????# # | | ???????????????? ?????????########## # | | ???????????????? ?????????# !% # # | | ????????????????%?######### """" # # | | ???????????????# ## # """ # # | | ???????????????# ## """ # """" # =# | | ???????????????# ## Y" # """ # !%# | | ??????????????## ## """ # ! # =# | | ?????????????? ## / # # | | ??????????????? ## ! #% / # | | ??????????????? ## # # # | | ???????????????#%######+############ # | | ???????????????#@#??# *% | | ?????????????### #### | | ?????????????# % | | ?????????????# T" ## | | ?????????????+ " ####+############ # | | ?????????????# #??????????????#T # | | ?????????????# #??????????????## # | | ?????????????## ##???????????????# # | | ??????????????# #??????????????? | | ??????????????# #?????????????? | | ??????????????+ #?????????????######### | | ??????????????# #?????????????????????? | | ??????????????# #?????????????????????? | | ??????????????# ??????????????????????? | | ??????????????##+#??????????????????????? | | ????????????????????????????????????????? | | ????????????????????????????????????????? | | ????????????????????????????????????????? | | ????????????????????????????????????????? | | ????????????????????????????????????????? | | ????????????????????????????????????????? | | ????????????????????????????????????????? | | ????????????????????????????????????????? | | ????????????????????????????????????????? | | ????????????????????????????????????????? | +----------------------------------------------------+ Best States ------------- Heat Dissipation 102 Energy Generation 51 Energy Capacity 1950 Matter Stores 847 Matter Capacity 1000 Sight Range 25 Robot Scan Range 20 Terrain Scan Density 85 Jamming Range 14 Corruption Containment 8 Armor Coverage 1200 Resistance: KI 30 Core Shielding 30 Propulsion Shielding 33 Weapon Shielding 15 Phase Shifting 20 Evasion (%) 70 Targeting Accuracy 10 Melee Accuracy 12 Core Analysis 6 Armor Integrity Analysis 30 Recoil Reduction 2 Matter Filtering 30 Energy Filtering 30 Kinecelleration 30 Force Boost 30 Offensive Hacking 10 Defensive Hacking 12 Item Schematics ----------------- Combat Drone Bay | -6/Data Miner | Free Lgt. Regenerative Plating | -6/Data Miner | Free Exp. Cesium-ion Thruster | -6/Data Miner | Free Prc. Matter Filter | -6/Data Miner | Free Adv. Medium Treads | -6/Data Miner | Free Plasma Sword | -6/Data Miner | Free Imp. Armor Integrity Analyzer | -6/Data Miner | Free Phase Gun | -6/Data Miner | Free Robot Schematics ------------------ S-27 Virus | -6/Data Miner | Free G-50 Soldier | -6/Data Miner | Free L-41 Fighter | -6/Data Miner | Free Fabricated ------------ Nothing Repaired ---------- Nothing Studied --------- None Alien Tech Used ----------------- Core Expander Achievements -------------- Martial Artist Challenges ------------ None Game ------ Seed SpikedXenonUnit Manual? 0 Play Time 01:31:01 Cumulative 957.7 hours Start 2026.07.01 @ 02:18:26 End 2026.07.01 @ 11:03:12 Sessions 6 Manual Loads 0 Difficulty Rogue Special Mode None Game No. 1095 Rogue 1095 Adventurer 0 Explorer 0 Win Type - Total 41 Types 20/1/8/3/2/1/3/2/1/0 Lore% 98 Gallery% 96 Achievement% 92 Wizard Run 0 Options --------- Layout 2 ASCII 0 Keyboard 0 Movement Mouse Keybinds 0 Fullscreen 2 Font 24/X11 Map View 50x44 Zoom Use 0% Tactical HUD 1 Map Filters NONE Filters NONE Steam 1 RUN: fa0bb0d0-ccb9-4fc2-8730-aa562f38a3c8